bitfinex-derivatives/quotes_SOLF0:USTF0_20241211
["timestamp","ask_amount","ask_price","bid_price","bid_amount"]
[1733930208134,2.1938,227.79,227.75,5.48594749]
[1733930208336,1.3398,227.84,227.7,8.19874702]
[1733930208732,1.3398,227.84,227.76,2.194]
[1733930209032,1.3398,227.84,227.77,5.48627873]
[1733930209237,1.3398,227.84,227.78,5.48627873]
[1733930209532,26.4235267,227.81,227.79,3.29667873]
[1733930209731,2.1939,227.78,227.7,3.5965]
[1733930209930,26.4235267,227.81,227.63,1.4041]
[1733930210132,26.4235267,227.77,227.63,1.4041]
[1733930211839,26.4235267,227.77,227.52,1.3438]
[1733930212037,26.4235267,227.73,227.55,26.4235267]
[1733930212335,26.4235267,227.69,227.53,4.94111241]
[1733930212538,26.4235267,227.65,227.53,3.56981241]
[1733930212837,26.4235267,227.65,227.53,2.19751241]
[1733930213231,26.4235267,227.61,227.53,2.19751241]
[1733930213436,2.84,227.6,227.53,2.19751241]
[1733930213740,2.1957,227.59,227.53,2.19751241]
[1733930214035,2.84,227.6,227.53,2.19751241]
[1733930214536,2.8313,227.68,227.53,2.19751241]
[1733930215040,1.412,227.74,227.55,26.4235267]
[1733930215041,29.2635267,227.73,227.55,26.4235267]
[1733930215638,29.2635267,227.73,227.55,29.1031267]
[1733930216240,2.1947,227.69,227.61,2.1954]
[1733930216542,29.2635267,227.73,227.61,2.1954]
[1733930216740,26.4235267,227.73,227.55,29.1031267]
[1733930217043,29.3235267,227.73,227.55,29.1031267]
[1733930217442,29.3235267,227.73,227.6,2.1955]
[1733930217942,29.3235267,227.73,227.55,2.6796]
[1733930218143,26.4235267,227.69,227.55,2.6796]
[1733930218535,26.4235267,227.69,227.58,2.1957]
[1733930218939,26.4235267,227.69,227.55,2.6796]
[1733930219145,2.1952,227.64,227.57,2.1958]
[1733930219449,2.9,227.65,227.49,2.9]
[1733930219643,29.3235267,227.65,227.49,2.9]
[1733930219843,1.4327,227.64,227.55,2.1961]
[1733930220038,1.4327,227.64,227.49,2.9]
[1733930220244,2.1957,227.59,227.5,2.1965]
[1733930220547,2.9,227.59,227.47,5.22826611]
[1733930220747,2.9,227.59,227.45,2.9]
[1733930220748,2.9,227.59,227.43,33.4114267]
[1733930221048,26.4235267,227.57,227.43,1.3403]
[1733930221445,26.4235267,227.57,227.42,5.39836775]
[1733930221748,26.4235267,227.57,227.36,26.4235267]
[1733930221951,26.4235267,227.57,227.41,5.23179376]
[1733930222143,2.9,227.56,227.36,29.1884267]
[1733930222342,26.4235267,227.57,227.36,29.1884267]
[1733930222653,2.1964,227.52,227.36,29.1884267]
[1733930222949,2.9,227.56,227.4,5.34022088]
[1733930223151,2.1966,227.5,227.42,2.1972]
[1733930223347,26.4235267,227.53,227.4,5.34022088]
[1733930223546,1.4012,227.52,227.36,27.7564267]
[1733930223851,1.4012,227.52,227.31,2.9]
[1733930223852,26.4235267,227.49,227.31,2.9]
[1733930224148,2.9,227.48,227.31,2.9]
[1733930224353,2.1973,227.43,227.35,2.198]
[1733930224555,2.9,227.48,227.33,5.37081782]
[1733930224858,1.4012,227.52,227.47,2.1968]
[1733930225046,2.9,227.54,227.4,2.9]
[1733930225250,2.9,227.55,227.4,2.9]
[1733930225553,2.9,227.57,227.5,2.1965]
[1733930225745,2.9,227.58,227.43,26.4235267]
[1733930225949,2.1962,227.54,227.46,2.1969]
[1733930226145,26.4235267,227.57,227.41,1.4479]
[1733930226546,26.4235267,227.53,227.34,1.3556]
[1733930226749,4.2284,227.52,227.34,1.3556]
[1733930228058,2.1969,227.47,227.34,1.3556]
[1733930228349,4.2284,227.52,227.34,1.3556]
[1733930228557,2.197,227.46,227.34,1.3556]
[1733930228752,26.4235267,227.49,227.34,1.3556]
[1733930228952,26.4235267,227.49,227.33,34.69434452]
[1733930229149,26.4235267,227.49,227.39,2.1976]
[1733930229150,2.1971,227.44,227.39,2.1976]
[1733930229352,1.3677,227.48,227.33,34.69434452]
[1733930229548,4.2284,227.52,227.33,34.69434452]
[1733930229748,1.3284,227.52,227.37,26.4235267]
[1733930229954,1.3677,227.58,227.41,26.4235267]
[1733930230259,1.3677,227.58,227.42,5.6934]
[1733930230747,3.5635,227.58,227.42,5.6934]
[1733930230950,1.3677,227.58,227.42,5.6934]
[1733930231354,26.4235267,227.63,227.45,31.56916428]
[1733930231549,4.0721,227.67,227.49,26.4235267]
[1733930231751,26.4235267,227.75,227.57,26.4235267]
[1733930231946,26.4235267,227.75,227.5,2.9]
[1733930231947,1.38,227.8,227.62,26.4235267]
[1733930232156,1.38,227.8,227.63,2.9]
[1733930232355,1.38,227.8,227.73,2.1943]
[1733930232749,1.38,227.8,227.7,2.9]
[1733930232953,2.19500417,227.79,227.64,1.4462]
[1733930233155,2.19500417,227.79,227.66,2.9]
[1733930233353,2.19500417,227.79,227.66,8.08516419]
[1733930233553,2.19500417,227.79,227.67,2.9]
[1733930234256,2.19500417,227.79,227.63,1.3458]
[1733930234454,26.4235267,227.77,227.62,2.9]
[1733930235153,2.1943,227.73,227.64,7.45509075]
[1733930235351,26.4235267,227.77,227.64,5.25999075]
[1733930235855,2.1944,227.73,227.65,2.195]
[1733930236056,26.4235267,227.77,227.58,26.4235267]
[1733930236355,2.1942,227.75,227.66,2.195]
[1733930236558,2.19529329,227.76,227.65,2.9]
[1733930237453,2.19529329,227.76,227.66,2.1949]
[1733930237651,2.19529329,227.76,227.63,6.71436253]
[1733930238460,2.9,227.75,227.61,2.9]
[1733930238853,2.1947,227.69,227.62,2.1954]
[1733930239050,26.4235267,227.69,227.53,1.4095]
[1733930239252,26.4235267,227.69,227.54,2.9]
[1733930239452,26.4235267,227.73,227.54,2.9]
[1733930240056,26.4235267,227.73,227.58,5.23387002]
[1733930240460,2.1944,227.73,227.61,26.4235267]
[1733930240655,2.9,227.79,227.62,2.9]
[1733930241058,27.8035267,227.8,227.62,2.9]
[1733930241559,29.9972267,227.8,227.74,2.1942]
[1733930241761,29.9972267,227.8,227.68,2.9]
[1733930241762,27.8035267,227.8,227.68,2.9]
[1733930242062,26.4235267,227.84,227.77,2.1939]
[1733930242361,207.60384399,228.03,227.69,2.9]
[1733930242362,26.4235267,227.88,227.69,26.4235267]
[1733930242658,2.8748,227.91,227.84,2.1933]
[1733930242659,5.0674,227.91,227.84,2.1933]
[1733930242858,3.6103,227.91,227.84,2.1933]
[1733930243058,26.4235267,227.96,227.77,26.4235267]
[1733930243359,2.1923,227.94,227.81,26.4235267]
[1733930243666,1.4177,227.98,227.82,2.9]
[1733930243853,26.4235267,228.0,227.82,5.7583]
[1733930244258,28.61650915,228.0,227.82,5.7583]
[1733930244456,28.61650915,228.0,227.82,2.8583]
[1733930244658,26.4235267,227.96,227.82,5.7583]
[1733930245052,1.4329,227.99,227.82,5.7583]
[1733930245260,1.4329,227.99,227.85,5.24221034]
[1733930245658,1.4329,227.99,227.83,2.9]
[1733930246158,2.192,227.97,227.84,1.4229]
[1733930246457,1.4329,227.99,227.84,1.4229]
[1733930246658,2.1916,228.02,227.85,26.4235267]
[1733930246961,26.4235267,228.08,227.89,26.4235267]
[1733930247166,26.4235267,228.08,227.9,2.9]
[1733930248459,26.4235267,228.08,227.91,2.9]
[1733930248659,2.192,227.97,227.91,2.9]
[1733930248867,26.4235267,228.04,227.9,2.1926]
[1733930248868,29.3235267,228.04,227.9,5.0926]
[1733930249167,29.3235267,228.04,227.85,26.4235267]
[1733930249359,2.192,227.98,227.88,2.9]
[1733930249565,29.3235267,228.04,227.88,2.9]
[1733930249757,26.4235267,228.0,227.88,2.9]
[1733930250065,26.4235267,227.96,227.84,6.60772349]
[1733930250359,26.4235267,228.03,227.8,2.1936]
[1733930250360,2.1929,227.88,227.8,2.1936]
[1733930250561,26.4235267,227.92,227.73,26.4235267]
[1733930250756,26.4235267,227.92,227.74,4.2373]
[1733930250963,2.1932,227.85,227.79,5.14495855]
[1733930251157,26.4235267,227.88,227.74,4.2373]
[1733930251366,29.3235267,227.88,227.74,4.2373]
[1733930251569,2.9,227.88,227.74,9.45577441]
[1733930251764,32.1168267,227.96,227.77,26.4235267]
[1733930252065,2.1925,227.92,227.82,2.1934]
[1733930252271,2.1925,227.92,227.77,26.4235267]
[1733930252272,29.3235267,227.96,227.83,2.9]
[1733930252766,29.3235267,227.96,227.84,2.1932]
[1733930252966,29.3235267,227.96,227.83,2.9]
[1733930253163,29.3235267,227.96,227.86,2.193]
[1733930253367,26.4235267,227.96,227.83,2.9]
[1733930253660,2.1925,227.93,227.85,2.1931]
[1733930253860,26.4235267,227.96,227.83,2.9]
[1733930254766,2.1925,227.92,227.85,2.1931]
[1733930254968,26.4235267,227.96,227.83,2.9]
[1733930255167,26.4235267,227.88,227.74,6.55577441]
[1733930255667,26.4235267,227.84,227.74,5.21847441]
[1733930255861,26.4235267,227.88,227.74,5.21847441]
[1733930256362,2.1935,227.82,227.75,2.1941]
[1733930257368,2.1936,227.81,227.75,2.1941]
[1733930257569,26.4235267,227.84,227.74,7.41267441]
[1733930257873,26.4235267,227.84,227.74,5.21847441]
[1733930258165,26.4235267,227.84,227.71,1.3936]
[1733930258369,26.4235267,227.84,227.72,2.9]
[1733930258866,26.4235267,227.84,227.73,5.26739283]
[1733930259070,26.4235267,227.88,227.73,5.26739283]
[1733930259265,1.4188,227.91,227.73,33.01361953]
[1733930259466,29.3235267,227.92,227.84,2.1932]
[1733930259664,29.3235267,227.92,227.81,2.9]
[1733930260268,29.3235267,227.92,227.76,2.9]
[1733930260865,6.65982142,227.97,227.77,26.4235267]
[1733930260866,29.3235267,227.96,227.77,26.4235267]
[1733930261060,2.1923,227.94,227.77,26.4235267]
[1733930261261,29.3235267,227.96,227.77,26.4235267]
[1733930261461,26.4235267,227.96,227.77,26.4235267]
[1733930261969,26.4235267,227.92,227.74,1.3557]
[1733930262267,2.9,227.91,227.75,2.9]
[1733930264074,2.193,227.88,227.79,2.1937]
[1733930264268,2.9,227.91,227.75,2.9]
[1733930264666,2.9,227.91,227.74,1.3557]
[1733930264968,26.4235267,227.88,227.74,1.3557]
[1733930265163,1.3929,227.87,227.74,1.3557]
[1733930265767,26.4235267,227.84,227.71,1.3936]
[1733930265966,26.4235267,227.84,227.6,1.3458]
[1733930265967,26.4235267,227.8,227.64,2.9]
[1733930266572,26.4235267,227.76,227.64,2.9]
[1733930266867,26.4235267,227.76,227.66,5.1462408]
[1733930267465,2.1948,227.69,227.64,5.0952]
[1733930267672,26.4235267,227.76,227.61,2.9]
[1733930267968,26.4235267,227.76,227.6,4.1588]
[1733930267969,2.1944,227.73,227.63,5.23785895]
[1733930268270,1.351,227.75,227.6,4.1588]
[1733930268873,5.19623009,227.79,227.61,5.16514018]
[1733930269072,2.9,227.82,227.64,26.4235267]
[1733930269271,2.9,227.82,227.65,2.9]
[1733930269670,1.368,227.87,227.68,26.4235267]
[1733930269870,2.1932,227.86,227.79,2.1937]
[1733930270072,1.368,227.87,227.75,2.9]
[1733930270370,26.4235267,227.89,227.83,2.1934]
[1733930270568,26.4235267,227.89,227.76,2.9]
[1733930270569,2.9,227.9,227.76,2.9]
[1733930270777,5.3394947,227.97,227.77,26.4235267]
[1733930271076,5.3394947,227.97,227.76,2.9]
[1733930271077,1.3863,228.0,227.81,26.4235267]
[1733930271374,4.2838,228.02,227.82,2.9]
[1733930271575,4.2838,228.02,227.85,26.4235267]
[1733930271774,4.2838,228.02,227.86,1.4176]
[1733930271967,26.4235267,228.03,227.86,1.4176]
[1733930273368,26.4235267,228.07,227.86,1.4176]
[1733930273570,26.4235267,228.07,227.87,2.7996]
[1733930274375,2.1912,228.06,227.89,26.4235267]
[1733930274677,26.4235267,228.07,227.9,2.9]
[1733930274880,2.1913,228.05,227.97,2.192]
[1733930275277,31.68238186,228.07,227.92,5.38357733]
[1733930275473,31.68238186,228.07,227.98,2.1918]
[1733930275879,4.321,228.1,227.96,2.94]
[1733930276175,26.4235267,228.15,227.97,26.4235267]
[1733930276376,26.4235267,228.15,227.98,1.3972]
[1733930276577,2.1902,228.16,228.09,2.1908]
[1733930276777,2.94,228.17,228.05,2.94]
[1733930277686,2.1903,228.15,228.04,2.94]
[1733930277977,26.4235267,228.15,228.04,8.09501583]
[1733930278277,26.4235267,228.15,228.07,2.191]
[1733930278782,26.4235267,228.15,228.08,2.1909]
[1733930278980,26.4235267,228.15,228.04,8.09501583]
[1733930279783,2.1905,228.13,228.06,2.1911]
[1733930279981,26.4235267,228.15,227.98,1.3972]
[1733930280282,2.1906,228.12,228.04,2.1913]
[1733930280479,26.4235267,228.15,227.98,1.3972]
[1733930280681,31.70080074,228.19,227.99,2.94]
[1733930281378,2.1902,228.16,228.08,2.1909]
[1733930281580,31.70080074,228.19,228.06,2.94]
[1733930281887,26.4235267,228.15,228.01,2.94]
[1733930282577,2.1902,228.16,228.09,2.1908]
[1733930282780,31.70080074,228.19,228.09,2.1908]
[1733930283180,2.1903,228.15,228.01,29.3635267]
[1733930283485,26.4235267,228.15,228.01,2.94]
[1733930283784,2.762,228.21,228.01,29.3635267]
[1733930283981,2.762,228.21,228.05,26.4235267]
[1733930284185,4.3145,228.3,228.09,26.4235267]
[1733930284385,26.4235267,228.29,228.1,4.3188]
[1733930284582,26.4235267,228.29,228.13,26.4235267]
[1733930284782,2.1892,228.27,228.13,26.4235267]
[1733930284980,26.4235267,228.29,228.13,26.4235267]
[1733930285185,26.4235267,228.29,228.1,4.3188]
[1733930285790,26.4235267,228.33,228.13,26.4235267]
[1733930285990,2.1892,228.26,228.14,2.94]
[1733930286286,26.4235267,228.33,228.14,2.94]
[1733930286488,26.4235267,228.33,228.15,2.8153]
[1733930286786,26.4235267,228.29,228.18,5.21288863]
[1733930287185,26.4235267,228.33,228.18,8.15288863]
[1733930287391,30.7380267,228.37,228.18,8.15288863]
[1733930287589,30.7380267,228.37,228.27,2.1891]
[1733930287590,2.1886,228.33,228.27,2.1891]
[1733930287897,2.1886,228.33,228.18,8.15288863]
[1733930287898,30.7380267,228.37,228.26,2.94]
[1733930288190,26.4235267,228.33,228.18,5.21288863]
[1733930288586,26.4235267,228.33,228.19,2.94]
[1733930288789,26.4235267,228.36,228.19,2.94]
[1733930289094,2.1885,228.34,228.28,2.189]
[1733930289292,29.1876267,228.4,228.28,2.94]
[1733930289691,2.1885,228.34,228.28,2.94]
[1733930289994,26.4235267,228.4,228.28,2.94]
[1733930290191,1.3594,228.46,228.28,2.94]
[1733930290392,27.7415267,228.48,228.31,26.4235267]
[1733930290991,32.93527138,228.48,228.31,26.4235267]
[1733930291192,27.7415267,228.48,228.31,26.4235267]
[1733930291398,27.7415267,228.48,228.38,2.1881]
[1733930292398,1.318,228.48,228.38,2.1881]
[1733930292599,2.1875,228.44,228.38,2.1881]
[1733930293689,27.7415267,228.48,228.33,2.94]
[1733930293893,27.7415267,228.48,228.34,5.29225438]
[1733930294393,1.3317,228.51,228.34,31.71578108]
[1733930294594,1.3317,228.51,228.39,2.188]
[1733930294595,2.1872,228.47,228.39,2.188]
[1733930294793,1.3317,228.51,228.4,2.94]
[1733930295794,2.1872,228.48,228.4,2.94]
[1733930296092,1.3317,228.51,228.4,2.94]
[1733930297291,2.1874,228.46,228.4,2.94]
[1733930297496,1.3317,228.51,228.4,2.94]
[1733930297893,2.1874,228.45,228.4,2.94]
[1733930298201,1.3317,228.51,228.35,2.94]
[1733930298202,26.4235267,228.48,228.35,2.94]
[1733930298703,26.4235267,228.48,228.36,2.1883]
[1733930299203,26.4235267,228.48,228.35,2.94]
[1733930299403,26.4235267,228.48,228.34,5.29225438]
[1733930299801,2.94,228.47,228.34,5.29225438]
[1733930300605,26.4235267,228.48,228.37,2.1881]
[1733930300606,2.1877,228.43,228.37,2.1881]
[1733930300801,1.3317,228.51,228.38,2.94]
[1733930301198,2.1875,228.44,228.38,5.128]
[1733930301406,26.4235267,228.48,228.34,5.29225438]
[1733930301595,29.3635267,228.48,228.34,5.29225438]
[1733930302005,26.4235267,228.44,228.34,5.29225438]
[1733930302304,2.1883,228.37,228.34,5.29225438]
[1733930302503,26.4235267,228.44,228.34,5.29225438]
[1733930302700,26.4235267,228.44,228.32,2.94]
[1733930302701,26.4235267,228.4,228.27,2.94]
[1733930303098,2.1882,228.37,228.31,2.1887]
[1733930303299,26.4235267,228.44,228.27,2.94]
[1733930303505,26.4235267,228.44,228.29,5.18293691]
[1733930304103,2.1881,228.38,228.32,2.1886]
[1733930304305,2.1881,228.38,228.33,2.94]
[1733930304604,2.1883,228.36,228.33,2.94]
[1733930305407,2.1884,228.35,228.33,2.94]
[1733930305606,26.4235267,228.44,228.29,5.18293691]
[1733930305905,2.1891,228.28,228.23,2.1895]
[1733930306104,26.4235267,228.36,228.09,26.4235267]
[1733930306105,26.4235267,228.3,228.09,26.4235267]
[1733930306302,26.4235267,228.3,228.11,1.4016]
[1733930306705,1.3437,228.31,228.13,26.4235267]
[1733930306903,1.3437,228.31,228.18,5.30524582]
[1733930307404,2.96,228.32,228.18,5.30524582]
[1733930307405,1.3278,228.35,228.21,26.4235267]
[1733930307606,1.3278,228.35,228.22,4.3628]
[1733930308505,2.189,228.29,228.23,2.1895]
[1733930308709,2.189,228.29,228.22,4.3628]
[1733930308710,1.3278,228.35,228.22,4.3628]
[1733930309604,2.189,228.29,228.23,2.1895]
[1733930309809,2.189,228.29,228.22,4.3628]
[1733930309810,1.3278,228.35,228.22,4.3628]
[1733930310705,2.1891,228.28,228.22,5.1496]
[1733930311008,29.3835267,228.32,228.18,5.30524582]
[1733930311211,2.1893,228.25,228.18,5.30524582]
[1733930311402,26.4235267,228.28,228.15,2.96]
[1733930311605,29.3835267,228.32,228.15,2.96]
[1733930311808,1.3844,228.34,228.17,31.64462077]
[1733930312106,1.3278,228.35,228.17,31.64462077]
[1733930312310,2.1891,228.27,228.22,2.1896]
[1733930312506,1.3278,228.35,228.2,2.96]
[1733930312707,26.4235267,228.32,228.2,2.96]
[1733930312903,2.1892,228.27,228.21,2.1897]
[1733930313103,26.4235267,228.32,228.2,2.96]
[1733930313513,26.4235267,228.32,228.21,2.1896]
[1733930314107,26.4235267,228.32,228.23,2.1895]
[1733930314303,186.5051373,228.4,228.19,2.96]
[1733930314510,5.32482001,228.4,228.29,26.4235267]
[1733930314713,241.44953561,228.47,228.33,26.4235267]
[1733930315009,181.18031729,228.49,228.34,4.4023]
[1733930315313,5.37735068,228.52,228.37,26.4235267]
[1733930315703,2.187,228.49,228.37,26.4235267]
[1733930316013,5.37735068,228.52,228.42,2.1877]
[1733930316215,2.187,228.49,228.42,2.96]
[1733930316514,1.3914,228.53,228.42,2.96]
[1733930317012,2.1871,228.48,228.42,5.1477]
[1733930317207,6.77015799,228.53,228.42,2.96]
[1733930318213,6.77015799,228.53,228.39,2.188]
[1733930318410,6.77015799,228.53,228.37,2.96]
[1733930318613,37.63909335,228.53,228.37,2.96]
[1733930318805,218.81941064,228.53,228.37,2.96]
[1733930319208,255.46204398,228.53,228.37,2.96]
[1733930319408,74.28172669,228.53,228.37,2.96]
[1733930319918,68.9029687,228.53,228.37,29.3835267]
[1733930320107,1.3914,228.53,228.37,29.3835267]
[1733930321017,2.1871,228.48,228.42,2.1876]
[1733930322016,1.3914,228.53,228.39,2.188]
[1733930322217,1.3914,228.53,228.37,29.3835267]
[1733930322514,181.18031729,228.52,228.37,29.3835267]
[1733930322816,1.3914,228.53,228.37,29.3835267]
[1733930324413,2.1871,228.48,228.37,29.3835267]
[1733930325021,2.1872,228.47,228.42,2.1877]
[1733930325416,1.3914,228.53,228.42,2.1877]
[1733930325623,2.1873,228.46,228.42,2.1877]
[1733930326418,2.1874,228.46,228.4,2.1878]
[1733930326621,2.1874,228.46,228.37,19.14370093]
[1733930327014,1.3914,228.53,228.4,2.1878]
[1733930327322,1.3914,228.53,228.37,19.14370093]
[1733930327518,16.18370093,228.55,228.37,19.14370093]
[1733930327519,41.11436824,228.57,228.41,16.18370093]
[1733930327718,1.4123,228.57,228.42,1.3779]
[1733930328018,1.4123,228.57,228.43,2.96]
[1733930328324,2.1868,228.52,228.48,2.1871]
[1733930328727,2.1868,228.52,228.46,2.1873]
[1733930328924,1.4123,228.57,228.43,2.96]
[1733930329925,2.1868,228.52,228.47,2.1872]
[1733930330318,1.4123,228.57,228.45,2.1873]
[1733930330522,1.4123,228.57,228.43,2.96]
[1733930331216,1.4123,228.57,228.47,2.1872]
[1733930332122,1.4123,228.57,228.43,2.96]
[1733930332319,2.96,228.59,228.43,2.96]
[1733930332521,2.96,228.61,228.45,16.18370093]
[1733930332826,2.1865,228.55,228.5,2.1869]
[1733930333026,2.1865,228.55,228.45,16.18370093]
[1733930333526,2.1865,228.55,228.49,2.1869]
[1733930333727,16.18370093,228.59,228.44,1.4498]
[1733930334022,16.18370093,228.59,228.47,2.1872]
[1733930334224,2.1868,228.51,228.47,2.1872]
[1733930334527,16.18370093,228.59,228.5,2.1869]
[1733930334722,16.18370093,228.59,228.44,1.4498]
[1733930335125,16.18370093,228.59,228.47,2.1872]
[1733930335924,16.18370093,228.59,228.44,1.4498]
[1733930336126,2.1868,228.52,228.44,1.4498]
[1733930336529,2.1868,228.52,228.47,2.1871]
[1733930336730,2.1868,228.52,228.44,1.4498]
[1733930337025,2.1867,228.53,228.48,2.187]
[1733930337233,2.1867,228.53,228.44,1.4498]
[1733930337234,1.4125,228.6,228.44,1.4498]
[1733930337427,2.1869,228.51,228.44,1.4498]
[1733930337621,16.18370093,228.53,228.25,4.3786]
[1733930337931,16.18370093,228.53,228.39,5.344195]
[1733930338134,16.18370093,228.53,228.39,7.532095]
[1733930338427,16.18370093,228.53,228.39,5.344195]
[1733930338929,2.187,228.49,228.39,5.344195]
[1733930340328,2.1872,228.48,228.43,2.1875]
[1733930340528,2.1872,228.48,228.42,3.02]
[1733930340833,16.18370093,228.57,228.45,2.1874]
[1733930341830,2.1867,228.53,228.46,2.1873]
[1733930342029,16.18370093,228.57,228.46,2.1873]
[1733930342532,2.1869,228.51,228.46,2.1873]
[1733930342833,16.18370093,228.57,228.45,2.1874]
[1733930343025,16.18370093,228.57,228.42,3.02]
[1733930343226,1.4125,228.6,228.42,3.02]
[1733930343432,1.4125,228.6,228.48,16.18370093]
[1733930343633,1.4125,228.6,228.49,4.3871]
[1733930343837,2.1863,228.57,228.49,4.3871]
[1733930344233,2.1862,228.58,228.49,4.3871]
[1733930344433,3.02,228.64,228.49,4.3871]
[1733930344629,7.0738,228.68,228.52,16.18370093]
[1733930344936,2.1857,228.63,228.58,2.1861]
[1733930345132,74.80766389,228.78,228.53,1.4134]
[1733930345133,16.18370093,228.73,228.56,16.18370093]
[1733930345333,2.1852,228.68,228.62,2.1858]
[1733930345636,16.18370093,228.73,228.62,2.1858]
[1733930345834,16.18370093,228.73,228.56,16.18370093]
[1733930346036,2.1855,228.66,228.56,16.18370093]
[1733930346936,20.29230093,228.77,228.56,16.18370093]
[1733930347135,20.29230093,228.77,228.6,16.18370093]
[1733930347438,20.29230093,228.77,228.61,4.4182]
[1733930347832,2.185,228.71,228.64,2.1856]
[1733930348334,17.49810093,228.77,228.64,2.1856]
[1733930348531,2.7639,228.81,228.64,16.18370093]
[1733930348736,0.6952241,228.8,228.65,2.7476]
[1733930348933,2.1845,228.76,228.65,2.7476]
[1733930349132,3.02,228.84,228.69,2.1851]
[1733930349333,8.23352773,228.84,228.68,3.02]
[1733930349535,2.1847,228.73,228.68,3.02]
[1733930349829,16.18370093,228.81,228.68,3.02]
[1733930350027,2.185,228.71,228.65,2.7476]
[1733930350226,16.18370093,228.81,228.65,7.9531]
[1733930350431,16.18370093,228.81,228.65,5.7676]
[1733930350827,16.18370093,228.81,228.65,4.3428]
[1733930351228,8.23352773,228.84,228.62,3.02]
[1733930351229,16.18370093,228.77,228.62,3.02]
[1733930351437,3.02,228.76,228.62,3.02]
[1733930351937,3.02,228.76,228.63,2.1857]
[1733930352339,16.18370093,228.74,228.62,3.02]
[1733930352529,16.18370093,228.74,228.59,5.31835441]
[1733930352735,16.18370093,228.7,228.59,5.31835441]
[1733930352930,2.1858,228.62,228.59,5.31835441]
[1733930353132,19.20370093,228.7,228.59,5.31835441]
[1733930353542,1.3643,228.73,228.59,5.31835441]
[1733930354037,1.3643,228.73,228.6,1.455]
[1733930354230,1.3643,228.73,228.61,3.02]
[1733930354934,2.1852,228.69,228.62,2.1858]
[1733930355239,1.3643,228.73,228.61,3.02]
[1733930355432,1.3643,228.73,228.61,4.4669]
[1733930355633,2.1851,228.69,228.62,2.1857]
[1733930356134,2.1851,228.69,228.61,4.4669]
[1733930356337,2.1852,228.68,228.61,4.4669]
[1733930356539,1.3643,228.73,228.61,4.4669]
[1733930356733,1.3554,228.75,228.61,4.4669]
[1733930356937,2.1849,228.71,228.63,2.1856]
[1733930357138,1.3554,228.75,228.63,2.1856]
[1733930357636,1.3887,228.78,228.61,4.4669]
[1733930357836,1.3887,228.78,228.61,22.05350093]
[1733930358338,2.1848,228.72,228.61,22.05350093]
[1733930358737,1.3887,228.78,228.67,2.1853]
[1733930359038,1.3887,228.78,228.61,22.05350093]
[1733930359336,2.1847,228.74,228.68,2.1851]
[1733930359734,1.3887,228.78,228.67,3.02]
[1733930359941,1.3887,228.78,228.68,2.1852]
[1733930360341,1.3887,228.78,228.65,3.02]
[1733930360638,4.3963,228.83,228.65,19.20370093]
[1733930361138,1.3763,228.83,228.73,2.1847]
[1733930361739,2.1841,228.8,228.73,2.1847]
[1733930361936,1.3763,228.83,228.71,5.2048]
[1733930362234,1.3763,228.83,228.71,3.02]
[1733930362435,2.1846,228.75,228.71,3.02]
[1733930362641,3.02,228.8,228.66,3.02]
[1733930362841,2.1847,228.74,228.66,3.02]
[1733930363040,17.56000093,228.83,228.7,2.185]
[1733930363241,17.56000093,228.83,228.66,3.02]
[1733930364943,2.1844,228.76,228.71,2.1849]
[1733930365342,17.56000093,228.83,228.66,3.02]
[1733930365539,17.56000093,228.83,228.72,2.1848]
[1733930365540,2.1843,228.78,228.72,2.1848]
[1733930365939,2.1843,228.78,228.66,3.02]
[1733930366347,2.1843,228.78,228.72,2.1848]
[1733930367141,2.1843,228.78,228.73,2.1847]
[1733930367340,2.1844,228.77,228.66,3.02]
[1733930367745,17.56000093,228.83,228.71,2.1849]
[1733930368050,17.56000093,228.83,228.66,3.02]